fUSD/lending_fUSD_20240327
["ID","MTS","AMOUNT","RATE_DAILY","PERIOD"]
[320706943,1711524643225,-151.0,0.00054,120]
[320706944,1711524643234,-155.455411,0.00054,120]
[320706945,1711524643244,-353.081644,0.00054,120]
[320706946,1711524643253,-353.081644,0.00054,120]
[320706947,1711524643263,-151.0,0.00054,120]
[320706949,1711524643273,-151.0,0.00054,120]
[320706951,1711524643282,-151.0,0.00054,120]
[320706953,1711524643291,-151.0,0.00054,120]
[320706955,1711524643300,-151.0,0.00054,120]
[320706957,1711524643309,-151.0,0.00054,120]
[320706958,1711524643319,-152.161881,0.00054,120]
[320706959,1711524643328,-151.0,0.00054,120]
[320706960,1711524643337,-151.0,0.00054,120]
[320706961,1711524643347,-151.0,0.00054,120]
[320706962,1711524643360,-151.0,0.00054,7]
[320706963,1711524643369,-151.0,0.00054,120]
[320706964,1711524643381,-151.0,0.00054,120]
[320706965,1711524643392,-198.275549,0.00054,120]
[320706966,1711524643402,-151.0,0.00054,120]
[320706967,1711524643411,-151.0,0.00054,120]
[320706968,1711524643423,-151.0,0.00054,120]
[320706969,1711524643432,-227.894689,0.00054,120]
[320706970,1711524643441,-151.0,0.00054,120]
[320706971,1711524643451,-151.0,0.00054,120]
[320706972,1711524643461,-151.0,0.00054,120]
[320706973,1711524643470,-151.0,0.00054,120]
[320706974,1711524643480,-151.0,0.00054,120]
[320706975,1711524643489,-151.0,0.00054,120]
[320706976,1711524643499,-182.296006,0.00054,120]
[320706977,1711524643508,-182.296006,0.00054,120]
[320706978,1711524643518,-204.025157,0.00054,120]
[320706979,1711524643527,-204.025157,0.00054,120]
[320706980,1711524643537,-151.0,0.00054,120]
[320706981,1711524643547,-151.0,0.00054,120]
[320706982,1711524643557,-151.0,0.00054,120]
[320706983,1711524643566,-173.957952,0.00054,30]
[320706984,1711524643576,-151.0,0.00054,120]
[320706985,1711524643586,-173.957952,0.00054,30]
[320706986,1711524643595,-151.0,0.00054,120]
[320706987,1711524643605,-854.646827,0.00054,120]
[320706988,1711524643614,-151.0,0.00054,120]
[320706989,1711524643624,-854.646827,0.00054,120]
[320706990,1711524643636,-1294.006513,0.00054,120]
[320706991,1711524643646,-3267.5178315,0.0005406,2]
[320706992,1711524643655,-150.0,0.00054097,60]
[320706993,1711524643665,-567.0,0.0005411,120]
[320706994,1711524643674,-156.33718315,0.00054146,60]
[320706995,1711524643684,-151.0,0.00054152,2]
[320706996,1711524643693,-151.032716,0.00054198,106]
[320706997,1711524643703,-242.84,0.00054209,120]
[320706998,1711524643712,-151.0,0.00054243,120]
[320706999,1711524643722,-449.895944,0.00054243,120]
[320707000,1711524643732,-449.895944,0.00054243,120]
[320707001,1711524643741,-218.726235,0.00054243,120]
[320707002,1711524643751,-218.726235,0.00054243,120]
[320707003,1711524643760,-1200.620511,0.00054243,120]
[320707004,1711524643770,-540.245892,0.00054243,120]
[320707005,1711524643779,-1200.620511,0.00054243,120]
[320707006,1711524643788,-540.245892,0.00054243,120]
[320707007,1711524643798,-151.0,0.00054243,120]
[320707008,1711524643810,-151.0,0.00054243,7]
[320707009,1711524643819,-523.683972,0.00054243,120]
[320707010,1711524643829,-523.683972,0.00054243,120]
[320707011,1711524643839,-151.0,0.00054243,60]
[320707012,1711524643850,-151.0,0.00054243,60]
[320707013,1711524643861,-152.43888631,0.00054277,60]
[320707014,1711524643873,-8323.33217451,0.00054406,32]
[320707015,1711524643885,-5800.0,0.00054466,7]
[320707016,1711524643898,-5800.0,0.00054475,7]
[320707017,1711524643908,-158.91989118,0.00054476,60]
[320707018,1711524643921,-5800.0,0.00054483,7]
[320707019,1711524643931,-5800.0,0.00054492,7]
[320707020,1711524643941,-151.032714,0.00054498,107]
[320707021,1711524643951,-5800.0,0.000545,7]
[320707022,1711524643961,-5800.0,0.00054509,7]
[320707023,1711524643972,-5800.0,0.00054517,7]
[320707024,1711524643982,-500.0,0.0005452,60]
[320707025,1711524643991,-1508.59,0.0005452,120]
[320707026,1711524644000,-567.0,0.00054521,120]
[320707027,1711524644010,-5800.0,0.00054526,7]
[320707028,1711524644020,-5800.0,0.00054532,7]
[320707029,1711524644030,-5800.0,0.00054534,7]
[320707030,1711524644040,-5800.0,0.00054541,7]
[320707031,1711524644049,-5800.0,0.00054543,7]
[320707032,1711524644059,-5800.0,0.00054549,7]
[320707033,1711524644068,-5800.0,0.00054551,7]
[320707034,1711524644078,-5800.0,0.00054551,7]
[320707035,1711524644087,-5800.0,0.00054558,7]
[320707036,1711524644097,-5800.0,0.00054566,7]
[320707037,1711524644107,-5800.0,0.00054575,7]
[320707038,1711524644117,-5800.0,0.00054583,7]
[320707039,1711524644128,-41251.79666522,0.00054691,120]
[320707040,1711524644138,-151.0,0.00054691,120]
[320707041,1711524644147,-151.0,0.00054691,120]
[320707042,1711524644157,-151.0,0.00054691,120]
[320707043,1711524644167,-151.0,0.00054691,120]
[320707044,1711524644177,-171.3548,0.00054691,120]
[320707045,1711524644186,-171.3548,0.00054691,120]
[320707046,1711524644196,-151.0,0.00054691,120]
[320707047,1711524644206,-151.0,0.00054691,120]
[320707048,1711524644215,-151.0,0.00054691,7]
[320707049,1711524644225,-151.0,0.00054691,7]
[320707050,1711524644234,-186.788986,0.00054691,120]
[320707051,1711524644244,-186.788986,0.00054691,120]
[320707052,1711524644254,-151.0,0.00054691,120]
[320707053,1711524644263,-151.0,0.00054691,120]
[320707054,1711524644272,-151.0,0.00054691,120]
[320707055,1711524644282,-196.167964,0.00054691,14]
[320707056,1711524644291,-196.167964,0.00054691,14]
[320707057,1711524644300,-178.25786,0.00054691,120]
[320707058,1711524644309,-178.25786,0.00054691,120]
[320707059,1711524644318,-151.64164,0.00054691,120]
[320707060,1711524644328,-151.64164,0.00054691,120]
[320707061,1711524644337,-151.0,0.00054691,7]
[320707062,1711524644346,-491.324185,0.00054691,30]
[320707063,1711524644355,-491.324185,0.00054691,30]
[320707064,1711524644365,-151.0,0.00054691,120]
[320707065,1711524644374,-542.767787,0.00054691,120]
[320707066,1711524644385,-542.767787,0.00054691,120]
[320707067,1711524644395,-1253.021096,0.00054691,120]
[320707068,1711524644404,-155.063246,0.00054691,120]
[320707069,1711524644413,-1253.021096,0.00054691,120]
[320707070,1711524644422,-151.0,0.00054691,120]
[320707071,1711524644431,-151.0,0.00054691,120]
[320707072,1711524644441,-151.0,0.00054691,120]
[320707073,1711524644450,-201.505912,0.00054691,120]
[320707074,1711524644459,-201.505912,0.00054691,120]
[320707075,1711524644469,-151.0,0.00054691,120]
[320707076,1711524644478,-151.0,0.00054691,120]
[320707077,1711524644487,-162.89902814,0.00054694,120]
[320707078,1711524644497,-162.89902814,0.00054694,120]
[320707079,1711524644506,-162.89902814,0.00054694,120]
[320707080,1711524644516,-162.89902814,0.00054694,120]
[320707081,1711524644525,-162.89902814,0.00054694,120]
[320707082,1711524644535,-163.39,0.00054694,120]
[320707083,1711524644544,-199.67,0.00054694,120]
[320707084,1711524644553,-200.0,0.0005479,2]
[320707085,1711524644562,-615.89054702,0.0005479,4]
[320707086,1711524644572,-4978.53893601,0.0005479,4]
[320707087,1711524644581,-282.86387528,0.0005479,4]
[320707088,1711524644590,-375.8908722,0.0005479,4]
[320707089,1711524644599,-216.34111641,0.0005479,4]
[320707090,1711524644609,-220621.269963,0.00054792,30]
[320707091,1711524644618,-215.79570193,0.00054793,4]
[320707092,1711524644629,-150.0,0.00054793,14]
[320707093,1711524644639,-234.00705772,0.00054793,14]
[320707094,1711524644648,-535.58407376,0.00054794,4]
[320707095,1711524644658,-500.0,0.00054794,120]
[320707096,1711524644668,-434.07333887,0.00054794,120]
[320707097,1711524644677,-507.38970129,0.00054794,120]
[320707098,1711524644686,-515.99657988,0.00054794,120]
[320707099,1711524644696,-500.0,0.00054794,120]
[320707100,1711524644706,-510.10592926,0.00054794,120]
[320707101,1711524644716,-510.9977536,0.00054794,120]
[320707102,1711524644725,-500.0,0.00054794,120]
[320707103,1711524644735,-10000.0,0.00054794,2]
[320707104,1711524644745,-523.55499417,0.00054794,120]
[320707105,1711524644756,-500.0,0.00054794,120]
[320707106,1711524644766,-500.0,0.00054794,120]
[320707107,1711524644775,-500.0,0.00054794,120]
[320707108,1711524644785,-500.0,0.00054794,120]
[320707109,1711524644794,-500.0,0.00054794,120]
[320707110,1711524644804,-268.09662982,0.00054794,120]
[320707111,1711524644817,-530.00738158,0.00054794,120]
[320707112,1711524644828,-898.85,0.00054794,120]
[320707113,1711524644839,-500.0,0.00054794,120]
[320707114,1711524644849,-550.36438401,0.00054794,120]
[320707115,1711524644859,-522.3862318,0.00054794,120]
[320707116,1711524644869,-555.68,0.00054794,120]
[320707117,1711524644881,-500.0,0.00054794,120]
[320707118,1711524644892,-506.34562458,0.00054794,120]
[320707119,1711524644902,-505.32991683,0.00054794,120]
[320707120,1711524644913,-500.0,0.00054794,120]
[320707121,1711524644923,-500.0,0.00054794,120]
[320707122,1711524644935,-500.0,0.00054794,120]
[320707123,1711524644945,-500.0,0.00054794,120]
[320707124,1711524644955,-531.14093787,0.00054794,120]
[320707125,1711524644965,-511.96111163,0.00054794,120]
[320707126,1711524644976,-525.94117525,0.00054794,120]
[320707127,1711524644986,-500.0,0.00054794,120]
[320707128,1711524644995,-566.88301978,0.00054794,120]
[320707129,1711524645005,-519.54848008,0.00054794,120]
[320707130,1711524645014,-513.74496334,0.00054794,120]
[320707131,1711524645024,-500.0,0.00054794,120]
[320707132,1711524645034,-517.29077982,0.00054794,120]
[320707133,1711524645043,-512.48131199,0.00054794,120]
[320707134,1711524645053,-151.0,0.00054794,120]
[320707135,1711524645063,-156.405141,0.00054794,120]
[320707136,1711524645073,-522.49432903,0.00054794,120]
[320707137,1711524645082,-500.0,0.00054794,120]
[320707138,1711524645092,-581.24806757,0.00054794,120]
[320707139,1711524645102,-500.0,0.00054794,120]
[320707140,1711524645112,-151.0,0.00054794,120]
[320707141,1711524645121,-151.0,0.00054794,120]
[320707142,1711524645133,-500.0,0.00054794,120]
[320707143,1711524645143,-523.75355317,0.00054794,120]
[320707144,1711524645153,-500.0,0.00054794,120]
[320707145,1711524645163,-151.0,0.00054794,120]
[320707146,1711524645173,-508.2215412,0.00054794,120]
[320707147,1711524645184,-151.0,0.00054794,120]
[320707148,1711524645194,-151.0,0.00054794,120]
[320707149,1711524645204,-151.0,0.00054794,120]
[320707150,1711524645213,-260.60155156,0.00054794,120]
[320707151,1711524645372,-500.0,0.00054794,120]
[320707152,1711524645384,-500.0,0.00054794,120]
[320707153,1711524645394,-512.27492906,0.00054794,120]
[320707154,1711524645403,-500.0,0.00054794,120]
[320707155,1711524645412,-151.0,0.00054794,120]
[320707156,1711524645421,-500.0,0.00054794,120]
[320707157,1711524645430,-573.56,0.00054794,120]
[320707158,1711524645439,-508.77463484,0.00054794,120]
[320707159,1711524645448,-151.899973,0.00054794,120]
[320707160,1711524645458,-500.0,0.00054794,120]
[320707161,1711524645467,-439.36992962,0.00054794,120]
[320707162,1711524645476,-592.61403696,0.00054794,120]
[320707163,1711524645485,-502.14479122,0.00054794,120]
[320707164,1711524645495,-500.0,0.00054794,120]
[320707165,1711524645505,-500.0,0.00054794,120]
[320707166,1711524645514,-500.0,0.00054794,120]
[320707167,1711524645524,-510.49564093,0.00054794,120]
[320707168,1711524645533,-509.6026202,0.00054794,120]
[320707169,1711524645542,-1349.2,0.00054794,120]
[320707170,1711524645550,-500.0,0.00054794,120]
[320707171,1711524645560,-500.0,0.00054794,120]
[320707172,1711524645569,-500.0,0.00054794,120]
[320707173,1711524645578,-500.0,0.00054794,120]
[320707175,1711524645587,-503.14946635,0.00054794,120]
[320707176,1711524645597,-500.0,0.00054794,120]
[320707177,1711524645606,-500.0,0.00054794,120]
[320707178,1711524645615,-500.0,0.00054794,120]
[320707179,1711524645624,-151.0,0.00054794,120]
[320707180,1711524645635,-151.0,0.00054794,120]
[320707182,1711524645644,-500.0,0.00054794,120]
[320707184,1711524645652,-488.26532536,0.00054794,120]
[320707185,1711524645661,-151.92812125,0.00054794,120]
[320707186,1711524645670,-500.0,0.00054794,120]
[320707187,1711524645679,-151.0,0.00054794,120]
[320707188,1711524645689,-151.0,0.00054794,120]
[320707189,1711524645698,-511.20865304,0.00054794,120]
[320707190,1711524645708,-500.0,0.00054794,120]
[320707191,1711524645717,-499.79429337,0.00054794,120]
[320707192,1711524645726,-500.0,0.00054794,120]
[320707193,1711524645736,-500.0,0.00054794,120]
[320707194,1711524645745,-500.0,0.00054794,120]
[320707195,1711524645754,-500.0,0.00054794,120]
[320707196,1711524645764,-505.80059688,0.00054794,120]
[320707197,1711524645773,-500.0,0.00054794,120]
[320707198,1711524645783,-500.0,0.00054794,120]
[320707199,1711524645792,-500.0,0.00054794,120]
[320707200,1711524645802,-500.0,0.00054794,120]
[320707201,1711524645812,-511.05981507,0.00054794,120]
[320707202,1711524645821,-554.18,0.00054794,120]
[320707203,1711524645831,-500.0,0.00054794,120]
[320707204,1711524645841,-500.0,0.00054794,120]
[320707205,1711524645850,-151.0,0.00054794,120]
[320707206,1711524645859,-504.1223992,0.00054794,120]
[320707207,1711524645869,-151.0,0.00054794,120]
[320707208,1711524645883,-500.0,0.00054794,120]
[320707209,1711524645893,-500.0,0.00054794,120]
[320707210,1711524645903,-500.0,0.00054794,120]
[320707211,1711524645915,-620.25,0.00054794,120]
[320707212,1711524645925,-500.0,0.00054794,120]
[320707213,1711524645934,-500.0,0.00054794,120]
[320707214,1711524645943,-502.5860526,0.00054794,120]
[320707215,1711524645956,-192.68697072,0.00054794,120]
[320707216,1711524645967,-151.0,0.00054794,120]
[320707217,1711524645976,-151.0,0.00054794,120]
[320707218,1711524645985,-500.0,0.00054794,120]
[320707219,1711524645994,-791.55,0.00054794,120]
[320707220,1711524646003,-584.31825443,0.00054794,120]
[320707221,1711524646013,-500.0,0.00054794,120]
[320707222,1711524646022,-500.0,0.00054794,120]
[320707223,1711524646031,-518.53613457,0.00054794,120]
[320707224,1711524646040,-517.71263282,0.00054794,120]
[320707225,1711524646050,-500.0,0.00054794,120]
[320707226,1711524646059,-151.0,0.00054794,120]
[320707227,1711524646068,-151.0,0.00054794,120]
[320707228,1711524646077,-1530.51,0.00054794,120]
[320707229,1711524646086,-509.00603409,0.00054794,120]
[320707230,1711524646095,-516.71867576,0.00054794,120]
[320707231,1711524646105,-500.0,0.00054794,120]
[320707232,1711524646115,-505.74693313,0.00054794,120]
[320707233,1711524646123,-500.0,0.00054794,120]
[320707234,1711524646135,-500.0,0.00054794,120]
[320707235,1711524646143,-612.18,0.00054794,120]
[320707236,1711524646152,-514.98391462,0.00054794,120]
[320707237,1711524646162,-500.0,0.00054794,120]
[320707238,1711524646171,-500.0,0.00054794,120]
[320707239,1711524646180,-500.0,0.00054794,120]
[320707240,1711524646189,-500.0,0.00054794,120]
[320707241,1711524646199,-592.4,0.00054794,120]
[320707242,1711524646209,-510.52235012,0.00054794,120]
[320707243,1711524646219,-525.44,0.00054794,120]
[320707244,1711524646228,-500.0,0.00054794,120]
[320707245,1711524646237,-500.0,0.00054794,120]
[320707246,1711524646247,-500.0,0.00054794,120]
[320707247,1711524646257,-873.5,0.00054794,120]
[320707248,1711524646266,-551.53,0.00054794,120]
[320707249,1711524646276,-151.0,0.00054794,120]
[320707250,1711524646285,-151.0,0.00054794,120]
[320707251,1711524646294,-500.0,0.00054794,120]
[320707252,1711524646304,-500.0,0.00054794,120]
[320707253,1711524646313,-151.0,0.00054794,120]
[320707254,1711524646322,-151.0,0.00054794,120]
[320707255,1711524646331,-500.0,0.00054794,120]
[320707256,1711524646339,-171.3548,0.00054794,120]
[320707257,1711524646349,-171.3548,0.00054794,120]
[320707258,1711524646358,-500.0,0.00054794,120]
[320707259,1711524646369,-500.0,0.00054794,120]
[320707260,1711524646379,-500.0,0.00054794,120]
[320707261,1711524646388,-171.3548,0.00054794,120]
[320707263,1711524646397,-171.3548,0.00054794,120]
[320707265,1711524646406,-519.33,0.00054794,120]
[320707267,1711524646415,-500.0,0.00054794,120]
[320707269,1711524646424,-521.85425296,0.00054794,120]
[320707271,1711524646433,-500.0,0.00054794,120]
[320707273,1711524646443,-515.22717381,0.00054794,120]
[320707275,1711524646452,-500.0,0.00054794,120]
[320707277,1711524646462,-500.0,0.00054794,120]
[320707279,1711524646470,-500.0,0.00054794,120]
[320707281,1711524646479,-523.93725046,0.00054794,120]
[320707283,1711524646489,-500.0,0.00054794,120]
[320707284,1711524646499,-507.24960441,0.00054794,120]
[320707286,1711524646509,-500.0,0.00054794,120]
[320707288,1711524646518,-509.20884717,0.00054794,120]
[320707290,1711524646528,-151.0,0.00054794,120]
[320707292,1711524646537,-151.0,0.00054794,120]
[320707295,1711524646548,-500.0,0.00054794,120]
[320707297,1711524646558,-500.0,0.00054794,120]
[320707299,1711524646567,-500.0,0.00054794,120]
[320707301,1711524646576,-510.64933931,0.00054794,120]
[320707302,1711524646586,-500.0,0.00054794,7]
[320707304,1711524646595,-500.0,0.00054794,120]
[320707306,1711524646604,-500.0,0.00054794,120]
[320707308,1711524646614,-500.0,0.00054794,120]
[320707310,1711524646623,-511.6319835,0.00054794,120]
[320707312,1711524646634,-500.0,0.00054794,120]
[320707314,1711524646643,-500.0,0.00054794,120]
[320707316,1711524646652,-508.35176156,0.00054794,120]
[320707318,1711524646662,-518.4128328,0.00054794,120]
[320707320,1711524646672,-152.53517169,0.00054794,120]
[320707322,1711524646681,-500.0,0.00054794,120]
[320707324,1711524646691,-500.0,0.00054794,120]
[320707325,1711524646700,-511.56572571,0.00054794,120]
[320707326,1711524646709,-516.20340899,0.00054794,120]
[320707327,1711524646718,-504.51745357,0.00054794,120]
[320707328,1711524646728,-5035.10738104,0.00054794,120]
[320707329,1711524646737,-517.37661717,0.00054794,120]
[320707330,1711524646747,-500.0,0.00054794,120]
[320707331,1711524646757,-500.0,0.00054794,120]
[320707332,1711524646766,-500.0,0.00054794,120]
[320707333,1711524646775,-500.0,0.00054794,120]
[320707334,1711524646785,-511.46381503,0.00054794,120]
[320707335,1711524646795,-500.0,0.00054794,120]
[320707336,1711524646804,-500.0,0.00054794,120]
[320707337,1711524646814,-500.0,0.00054794,120]
[320707338,1711524646823,-557.72014281,0.00054794,120]
[320707339,1711524646833,-500.0,0.00054794,120]
[320707340,1711524646842,-264.81303068,0.00054794,120]
[320707341,1711524646853,-151.0,0.00054794,120]
[320707342,1711524646862,-151.0,0.00054794,120]
[320707343,1711524646879,-528.14991632,0.00054794,120]
[320707344,1711524646889,-500.0,0.00054794,120]
[320707345,1711524646898,-500.0,0.00054794,120]
[320707346,1711524646908,-500.0,0.00054794,120]
[320707347,1711524646919,-500.0,0.00054794,120]
[320707348,1711524646928,-508.15915803,0.00054794,120]
[320707349,1711524646938,-500.0,0.00054794,120]
[320707350,1711524646947,-500.0,0.00054794,120]
[320707351,1711524646957,-510.7130573,0.00054794,120]
[320707352,1711524646968,-500.0,0.00054794,120]
[320707353,1711524646977,-714.93,0.00054794,120]
[320707354,1711524646987,-500.0,0.00054794,120]
[320707355,1711524646996,-521.17806824,0.00054794,120]
[320707356,1711524647005,-500.0,0.00054794,120]
[320707357,1711524647015,-531.3054507,0.00054794,120]
[320707358,1711524647024,-500.0,0.00054794,120]
[320707359,1711524647034,-518.10863169,0.00054794,120]
[320707360,1711524647043,-500.0,0.00054794,120]
[320707361,1711524647053,-500.0,0.00054794,120]
[320707362,1711524647063,-526.48044439,0.00054794,120]
[320707363,1711524647073,-151.0,0.00054794,7]
[320707364,1711524647082,-151.0,0.00054794,7]
[320707365,1711524647093,-576.97,0.00054794,120]
[320707366,1711524647102,-500.0,0.00054794,120]
[320707367,1711524647111,-515.45154437,0.00054794,120]
[320707368,1711524647121,-151.0,0.00054794,7]
[320707369,1711524647132,-151.0,0.00054794,7]
[320707370,1711524647142,-500.0,0.00054794,120]
[320707371,1711524647151,-580.17994653,0.00054794,120]
[320707372,1711524647160,-849.25,0.00054794,120]
[320707373,1711524647169,-518.39613521,0.00054794,120]
[320707374,1711524647179,-500.0,0.00054794,120]
[320707375,1711524647189,-500.0,0.00054794,120]
[320707376,1711524647199,-186.788986,0.00054794,120]
[320707377,1711524647209,-509.11879373,0.00054794,120]
[320707378,1711524647219,-186.788986,0.00054794,120]
[320707379,1711524647229,-528.95748975,0.00054794,120]
[320707380,1711524647238,-500.0,0.00054794,120]
[320707381,1711524647248,-186.788986,0.00054794,120]
[320707382,1711524647257,-523.22134195,0.00054794,120]
[320707383,1711524647267,-186.788986,0.00054794,120]
[320707384,1711524647277,-500.0,0.00054794,120]
[320707385,1711524647286,-500.0,0.00054794,2]
[320707386,1711524647297,-151.0,0.00054794,120]
[320707387,1711524647306,-151.0,0.00054794,120]
[320707388,1711524647315,-609.3036375,0.00054794,120]
[320707389,1711524647325,-500.0,0.00054794,120]
[320707390,1711524647335,-506.11315218,0.00054794,120]
[320707391,1711524647345,-515.45132867,0.00054794,120]
[320707392,1711524647356,-500.0,0.00054794,120]
[320707393,1711524647365,-751.04,0.00054794,120]
[320707394,1711524647374,-515.31631921,0.00054794,120]
[320707395,1711524647387,-508.20683283,0.00054794,30]
[320707396,1711524647398,-530.50217462,0.00054794,120]
[320707397,1711524647411,-500.0,0.00054794,120]
[320707398,1711524647421,-500.0,0.00054794,120]
[320707399,1711524647433,-511.91156569,0.00054794,120]
[320707400,1711524647443,-500.0,0.00054794,120]
[320707401,1711524647454,-1223.28,0.00054794,120]
[320707402,1711524647464,-500.0,0.00054794,120]
[320707403,1711524647474,-619.31,0.00054794,120]
[320707404,1711524647483,-512.62256813,0.00054794,120]
[320707405,1711524647492,-500.0,0.00054794,120]
[320707406,1711524647501,-500.0,0.00054794,120]
[320707407,1711524647510,-510.62804641,0.00054794,120]
[320707408,1711524647520,-650.43,0.00054794,120]
[320707409,1711524647529,-500.0,0.00054794,120]
[320707410,1711524647539,-512.32066762,0.00054794,120]
[320707411,1711524647549,-880.5,0.00054794,120]
[320707412,1711524647558,-508.61831958,0.00054794,120]
[320707413,1711524647568,-500.0,0.00054794,120]
[320707414,1711524647577,-151.0,0.00054794,120]
[320707415,1711524647587,-151.0,0.00054794,120]
[320707416,1711524647596,-509.39494599,0.00054794,120]
[320707417,1711524647606,-513.13280676,0.00054794,120]
[320707418,1711524647615,-1166.22,0.00054794,120]
[320707419,1711524647625,-151.0,0.00054794,120]
[320707420,1711524647637,-500.0,0.00054794,120]
[320707421,1711524647646,-151.0,0.00054794,120]
[320707422,1711524647656,-500.0,0.00054794,120]
[320707423,1711524647665,-634.8,0.00054794,120]
[320707424,1711524647674,-681.66,0.00054794,120]
[320707425,1711524647818,-523.33309454,0.00054794,120]
[320707426,1711524647828,-570.05,0.00054794,120]
[320707427,1711524647838,-543.59,0.00054794,120]
[320707428,1711524647846,-539.35,0.00054794,120]
[320707429,1711524647856,-1162.55,0.00054794,120]
[320707430,1711524647865,-500.0,0.00054794,120]
[320707431,1711524647874,-968.91,0.00054794,120]
[320707432,1711524647888,-500.0,0.00054794,120]
[320707433,1711524647898,-505.512199,0.00054794,120]
[320707434,1711524647907,-196.167964,0.00054794,14]
[320707435,1711524647916,-196.167964,0.00054794,14]
[320707436,1711524647925,-532.52,0.00054794,120]
[320707437,1711524647935,-500.0,0.00054794,120]
[320707438,1711524647944,-196.167964,0.00054794,14]
[320707439,1711524647953,-693.36,0.00054794,120]
[320707440,1711524647962,-196.167964,0.00054794,14]
[320707441,1711524647972,-523.92329338,0.00054794,120]
[320707442,1711524647982,-526.1293916,0.00054794,120]
[320707443,1711524647991,-7047.69,0.00054794,120]
[320707444,1711524648000,-178.87298174,0.00054794,120]
[320707445,1711524648010,-603.54,0.00054794,120]
[320707446,1711524648019,-586.63,0.00054794,120]
[320707447,1711524648028,-178.25786,0.00054794,120]
[320707448,1711524648037,-500.0,0.00054794,120]
[320707449,1711524648046,-178.25786,0.00054794,120]
[320707450,1711524648056,-544.25,0.00054794,120]
[320707451,1711524648065,-178.25786,0.00054794,120]
[320707452,1711524648075,-178.25786,0.00054794,120]
[320707453,1711524648084,-500.0,0.00054794,120]
[320707454,1711524648095,-711.53,0.00054794,120]
[320707455,1711524648105,-1171.65,0.00054794,120]
[320707456,1711524648114,-151.64164,0.00054794,120]
[320707457,1711524648124,-151.64164,0.00054794,120]
[320707458,1711524648136,-509.85941805,0.00054794,120]
[320707459,1711524648146,-608.98,0.00054794,120]
[320707460,1711524648155,-500.0,0.00054794,120]
[320707461,1711524648165,-2116.7,0.00054794,120]
[320707462,1711524648174,-151.64164,0.00054794,120]
[320707463,1711524648184,-151.64164,0.00054794,120]
[320707464,1711524648194,-442.95271759,0.00054794,120]
[320707465,1711524648203,-500.0,0.00054794,120]
[320707466,1711524648213,-500.0,0.00054794,120]
[320707467,1711524648222,-647.98,0.00054794,120]
[320707468,1711524648232,-1294.32,0.00054794,120]
[320707469,1711524648242,-508.59,0.00054794,120]
[320707470,1711524648251,-503.13348214,0.00054794,60]
[320707471,1711524648261,-152.714497,0.00054794,7]
[320707472,1711524648270,-500.0,0.00054794,120]
[320707473,1711524648279,-500.0,0.00054794,120]
[320707474,1711524648288,-277.86753886,0.00054794,120]
[320707475,1711524648297,-1085.3,0.00054794,120]
[320707476,1711524648306,-500.0,0.00054794,120]
[320707477,1711524648314,-510.40316236,0.00054794,120]
[320707478,1711524648323,-500.0,0.00054794,120]
[320707479,1711524648332,-880.23,0.00054794,120]
[320707480,1711524648341,-2222.27,0.00054794,120]
[320707481,1711524648350,-548.89,0.00054794,120]